fUSD/lending_fUSD_20260201
["ID","MTS","AMOUNT","RATE_DAILY","PERIOD"]
[404181633,1769904492652,150.0,0.00043527,30]
[404181639,1769904573473,587.0,0.00012848,2]
[404181679,1769904638539,-1028.58,0.00014664,2]
[404181680,1769904638549,-1170.0,0.00014677,2]
[404181681,1769904638558,-300.0,0.00014677,2]
[404181682,1769904638568,-6057.33325787,0.00014678,2]
[404181683,1769904638596,-4563.27933856,0.00014678,2]
[404181684,1769904638827,-7270.50740357,0.00014678,2]
[404181686,1769904638839,-163.98,0.00014763,2]
[404181688,1769904638849,-258.41,0.00014779,2]
[404181690,1769904638858,-1128.50262714,0.00014822,2]
[404181880,1769904644541,-644.83737286,0.00014822,2]
[404181881,1769904644551,-150.0,0.00014918,2]
[404181882,1769904644561,-250.0,0.00015,2]
[404181883,1769904644571,-187.335,0.00015383,2]
[404181884,1769904644581,-2451.453,0.00015383,2]
[404181885,1769904644591,-1028.58,0.00015397,2]
[404181886,1769904644604,-150.0,0.00015408,2]
[404181887,1769904644614,-151.0,0.00015494,2]
[404181888,1769904644624,-300.0,0.00015494,2]
[404181889,1769904644634,-363.56857281,0.00015495,2]
[404181890,1769904644646,-300.0,0.00015495,2]
[404181891,1769904644656,-300.0,0.00015495,2]
[404181892,1769904644665,-500.0,0.00015496,2]
[404181893,1769904644677,-500.0,0.00015496,2]
[404181894,1769904644686,-500.0,0.00015496,2]
[404181895,1769904644696,-416.68172338,0.00015496,2]
[404181896,1769904644706,-500.0,0.00015496,2]
[404181897,1769904644715,-500.0,0.00015496,2]
[404181898,1769904644725,-500.0,0.00015496,2]
[404181899,1769904644734,-500.0,0.00015496,2]
[404181900,1769904644743,-500.0,0.00015496,2]
[404181901,1769904644753,-500.0,0.00015496,2]
[404181902,1769904644762,-500.0,0.00015496,2]
[404181903,1769904644771,-500.0,0.00015496,2]
[404181904,1769904644781,-500.0,0.00015496,2]
[404181905,1769904644791,-500.0,0.00015496,2]
[404181906,1769904644801,-500.0,0.00015496,2]
[404181907,1769904644811,-500.0,0.00015496,2]
[404181908,1769904644820,-500.0,0.00015496,2]
[404181909,1769904644829,-500.0,0.00015496,2]
[404181910,1769904644839,-500.0,0.00015496,2]
[404181911,1769904644849,-500.0,0.00015496,2]
[404181912,1769904644859,-500.0,0.00015496,2]
[404181913,1769904644868,-500.0,0.00015496,2]
[404181914,1769904644878,-500.0,0.00015496,2]
[404181915,1769904644887,-500.0,0.00015496,2]
[404181916,1769904644897,-500.0,0.00015496,2]
[404181917,1769904644908,-500.0,0.00015496,2]
[404181918,1769904644918,-500.0,0.00015496,2]
[404181919,1769904644927,-235.58511849,0.00015496,2]
[404181920,1769904644937,-500.0,0.00015496,2]
[404181921,1769904644947,-500.0,0.00015496,2]
[404181922,1769904644956,-500.0,0.00015496,2]
[404181923,1769904644965,-500.0,0.00015496,2]
[404181924,1769904644974,-500.0,0.00015496,2]
[404181925,1769904644983,-500.0,0.00015496,2]
[404181926,1769904644993,-500.0,0.00015496,2]
[404181927,1769904645002,-500.0,0.00015496,2]
[404181928,1769904645011,-500.0,0.00015496,2]
[404181929,1769904645021,-500.0,0.00015496,2]
[404181930,1769904645030,-500.0,0.00015496,2]
[404181931,1769904645040,-500.0,0.00015496,2]
[404181932,1769904645049,-500.0,0.00015496,2]
[404181933,1769904645059,-500.0,0.00015496,2]
[404181934,1769904645069,-500.0,0.00015496,2]
[404181935,1769904645078,-500.0,0.00015496,2]
[404181936,1769904645088,-500.0,0.00015496,2]
[404181937,1769904645097,-500.0,0.00015496,2]
[404181938,1769904645107,-500.0,0.00015496,2]
[404181939,1769904645116,-500.0,0.00015496,2]
[404181940,1769904645126,-500.0,0.00015496,2]
[404181941,1769904645136,-500.0,0.00015496,2]
[404181942,1769904645145,-500.0,0.00015496,2]
[404181943,1769904645154,-500.0,0.00015496,2]
[404181944,1769904645163,-500.0,0.00015496,2]
[404181945,1769904645173,-500.0,0.00015496,2]
[404181946,1769904645182,-500.0,0.00015496,2]
[404181947,1769904645192,-500.0,0.00015496,2]
[404181948,1769904645201,-500.0,0.00015496,2]
[404181949,1769904645210,-500.0,0.00015496,2]
[404181950,1769904645219,-500.0,0.00015496,2]
[404181951,1769904645228,-500.0,0.00015496,2]
[404181952,1769904645238,-500.0,0.00015496,2]
[404181953,1769904645247,-500.0,0.00015496,2]
[404181954,1769904645257,-300.0,0.00015496,2]
[404181955,1769904645266,-500.0,0.00015496,2]
[404181956,1769904645276,-500.0,0.00015496,2]
[404181957,1769904645285,-500.0,0.00015496,2]
[404181958,1769904645294,-500.0,0.00015496,2]
[404181959,1769904645307,-500.0,0.00015496,2]
[404181960,1769904645316,-500.0,0.00015496,2]
[404181961,1769904645325,-500.0,0.00015496,2]
[404181962,1769904645335,-500.0,0.00015496,2]
[404181963,1769904645344,-500.0,0.00015496,2]
[404181964,1769904645355,-500.0,0.00015496,2]
[404181965,1769904645364,-500.0,0.00015496,2]
[404181966,1769904645374,-500.0,0.00015496,2]
[404181967,1769904645384,-264.04736078,0.00015496,2]
[404181968,1769904645393,-500.0,0.00015496,2]
[404181969,1769904645403,-30946.87563933,0.00015497,2]
[404181970,1769904645551,-19423.80621757,0.00015497,2]
[404181971,1769904645565,-28924.57797993,0.00015497,2]
[404181972,1769904645580,-9384.62838452,0.00015497,2]
[404181973,1769904645594,-6456.76566377,0.00015497,2]
[404181974,1769904645615,-9219.2,0.00015497,2]
[404181975,1769904645630,-2833.845,0.00015497,2]
[404181976,1769904645651,-241574.24591488,0.00015497,2]
[404181977,1769904645664,-13758.9241,0.00015597,2]
[404181978,1769904645677,-163.98,0.00015686,2]
[404181979,1769904645689,-152.86962153,0.00015687,2]
[404181980,1769904645700,-500.0,0.00015696,2]
[404181981,1769904645710,-591.48744175,0.00015696,2]
[404181982,1769904645721,-500.0,0.00015696,2]
[404181983,1769904645733,-500.0,0.00015696,2]
[404181985,1769904645747,-500.0,0.00015696,2]
[404181986,1769904645764,-548.49211975,0.00015696,2]
[404181987,1769904645775,-887.88,0.00015696,2]
[404181988,1769904645786,-500.0,0.00015696,2]
[404181989,1769904645796,-500.0,0.00015696,2]
[404181990,1769904645806,-500.0,0.00015696,2]
[404181991,1769904645817,-500.0,0.00015696,2]
[404181992,1769904645828,-500.0,0.00015696,2]
[404181993,1769904645838,-500.0,0.00015696,2]
[404181994,1769904645862,-500.0,0.00015696,2]
[404181995,1769904645872,-500.0,0.00015696,2]
[404181996,1769904645883,-721.11573824,0.000157,2]
[404181997,1769904645893,-613.97,0.00015757,2]
[404181998,1769904645903,-177.64,0.00015757,2]
[404181999,1769904645913,-363.56857276,0.00015762,2]
[404182000,1769904645923,-500.0,0.0001577,2]
[404182001,1769904645935,-613.97,0.00015782,2]
[404182002,1769904645945,-151.0,0.00015795,2]
[404182003,1769904645956,-151.0,0.00015795,2]
[404182004,1769904645967,-1000.0,0.00015797,2]
[404182005,1769904645978,-6094.8871305,0.00015798,2]
[404182006,1769904645988,-4792.6888474,0.00015798,2]
[404182007,1769904645999,-11052.800934,0.00015798,2]
[404182008,1769904646009,-9900.60341267,0.00015798,2]
[404182009,1769904646030,-5444.60447903,0.00015798,2]
[404182010,1769904646556,-4199.77125419,0.00015798,2]
[404182011,1769904646568,-89581.42328802,0.00015798,2]
[404182012,1769904646583,-4653.29464465,0.00015798,2]
[404182013,1769904646635,-808.00460389,0.00015798,2]
[404182014,1769904646647,-6142.03591646,0.00015798,2]
[404182015,1769904646711,-4870.82998426,0.00015798,2]
[404182016,1769904646723,-8185.96227502,0.00015798,2]
[404182017,1769904646734,-18479.0687602,0.00015798,2]
[404182018,1769904646746,-5065.50956673,0.00015798,2]
[404182019,1769904646757,-2929.83496369,0.00015798,2]
[404182020,1769904646769,-2958.27708629,0.00015798,2]
[404182021,1769904646793,-508.95678175,0.00015798,2]
[404182022,1769904646887,-5279.31111816,0.00015798,2]
[404182024,1769904646899,-10264.48088164,0.00015798,2]
[404182025,1769904646910,-2074.74606667,0.00015798,2]
[404182028,1769904677242,151.0,0.00043527,30]
[404182029,1769904677873,151.0,0.00043527,30]
[404182030,1769904678505,151.0,0.00043527,30]
[404182031,1769904679113,151.0,0.00043527,30]
[404182032,1769904679741,151.0,0.00043527,30]
[404182033,1769904680594,151.0,0.00043527,30]
[404182034,1769904680990,151.0,0.00043527,30]
[404182035,1769904681611,151.0,0.00043527,30]
[404182036,1769904682209,151.0,0.00043527,30]
[404182037,1769904682819,151.0,0.00043527,30]
[404182043,1769904734675,500.0,0.00043527,30]
[404182044,1769904737434,324.23649736,0.00043527,30]
[404182088,1769904834001,2847.36,0.00012058,2]
[404182262,1769905729157,1000.0,0.00043529,120]
[404182279,1769905753356,1000.0,0.00043529,120]
[404182306,1769905831437,-166.66,0.00013563,2]
[404182307,1769905831447,-166.66,0.00013848,2]
[404182308,1769905831460,-166.66,0.00014134,2]
[404182309,1769905831470,-207.47919557,0.00014313,2]
[404182310,1769905831479,-247.32384466,0.00014322,2]
[404182311,1769905831491,-392.60615534,0.00014322,2]
[404182312,1769905831500,-200.0,0.00014355,2]
[404182313,1769905831510,-250.0,0.00014384,2]
[404182314,1769905831520,-1200.0,0.00014412,2]
[404182315,1769905831530,-1200.0,0.00014413,2]
[404182316,1769905831539,-300.0,0.00014413,2]
[404182317,1769905831549,-300.0,0.00014413,2]
[404182318,1769905831559,-25859.09,0.00014414,2]
[404182319,1769905831568,-166.66,0.00014419,2]
[404182320,1769905831579,-184.06,0.00014484,2]
[404182321,1769905831588,-408.34,0.00014501,2]
[404182322,1769905831598,-284.11,0.00014563,2]
[404182323,1769905831607,-150.01145431,0.00014616,2]
[404182324,1769905831616,-166.66,0.00014705,2]
[404182325,1769905831626,-1956.01796428,0.00014919,2]
[404182326,1769905831636,-250.0,0.00014919,2]
[404182327,1769905831645,-166.66,0.0001499,2]
[404182328,1769905831658,-250.0,0.00015,2]
[404182329,1769905831668,-9679.05,0.00015006,2]
[404182330,1769905831677,-150.0,0.00015045,2]
[404182331,1769905831689,-500.0,0.00015045,2]
[404182332,1769905831699,-150.0,0.00015045,2]
[404182333,1769905831709,-500.0,0.00015045,2]
[404182334,1769905831719,-150.0,0.00015045,2]
[404182335,1769905831730,-150.0,0.00015045,2]
[404182336,1769905831740,-500.0,0.00015087,2]
[404182337,1769905831750,-300.0,0.00015093,2]
[404182338,1769905831759,-150.0,0.00015094,2]
[404182339,1769905831769,-150.0,0.00015094,2]
[404182340,1769905831780,-150.0,0.00015094,2]
[404182342,1769905831790,-150.0,0.00015094,2]
[404182343,1769905831801,-150.0,0.00015094,2]
[404182344,1769905831811,-150.0,0.00015094,2]
[404182345,1769905831820,-150.0,0.00015094,2]
[404182346,1769905831830,-150.0,0.00015094,2]
[404182347,1769905831839,-297.29685002,0.00015094,2]
[404182348,1769905831848,-150.0,0.00015094,2]
[404182350,1769905831862,-150.0,0.00015094,2]
[404182351,1769905831873,-150.0,0.000151,2]
[404182352,1769905831883,-500.0,0.000151,2]
[404182353,1769905831894,-500.0,0.000151,2]
[404182354,1769905831904,-150.0,0.000151,2]
[404182355,1769905831914,-207.47919557,0.00015132,2]
[404182356,1769905831924,-500.0,0.00015148,2]
[404182357,1769905831935,-500.0,0.00015148,2]
[404182358,1769905831946,-150.0,0.00015149,2]
[404182359,1769905831956,-150.0,0.00015149,2]
[404182360,1769905831966,-150.0,0.00015149,2]
[404182361,1769905831977,-151.19522173,0.00015149,2]
[404182362,1769905831989,-150.0,0.00015149,2]
[404182363,1769905831999,-151.24448466,0.00015149,2]
[404182364,1769905832009,-150.0,0.00015149,2]
[404182365,1769905832021,-150.0,0.00015149,2]
[404182366,1769905832031,-500.0,0.00015155,2]
[404182367,1769905832041,-500.0,0.00015155,2]
[404182368,1769905832055,-253.40923612,0.00015155,2]
[404182369,1769905832064,-500.0,0.00015203,2]
[404182370,1769905832074,-500.0,0.00015203,2]
[404182371,1769905832084,-150.0,0.00015204,2]
[404182372,1769905832095,-200.0,0.00015204,2]
[404182373,1769905832106,-150.0,0.00015204,2]
[404182374,1769905832115,-150.0,0.00015204,2]
[404182375,1769905832125,-150.0,0.00015204,2]
[404182376,1769905832135,-200.0,0.00015204,2]
[404182377,1769905832145,-550.0,0.00015209,2]
[404182378,1769905832155,-500.0,0.00015209,2]
[404182379,1769905832164,-282.6498,0.00015222,2]
[404182380,1769905832174,-4573.3256,0.00015222,2]
[404182381,1769905832184,-500.0,0.00015222,2]
[404182382,1769905832194,-500.0,0.00015222,2]
[404182383,1769905832203,-500.0,0.00015222,2]
[404182384,1769905832212,-500.0,0.00015222,2]
[404182385,1769905832222,-150.0,0.00015222,2]
[404182386,1769905832233,-3892.32,0.00015222,2]
[404182387,1769905832247,-366.76916306,0.00015232,2]
[404182388,1769905832257,-500.0,0.00015233,2]
[404182389,1769905832267,-500.0,0.00015258,2]
[404182390,1769905832277,-500.0,0.00015258,2]
[404182391,1769905832288,-150.0,0.00015258,2]
[404182392,1769905832299,-200.0,0.00015258,2]
[404182393,1769905832311,-200.98632457,0.00015258,2]
[404182394,1769905832322,-201.8586155,0.00015258,2]
[404182395,1769905832332,-300.0,0.00015264,2]
[404182396,1769905832344,-500.0,0.00015277,2]
[404182397,1769905832355,-500.0,0.00015277,2]
[404182398,1769905832366,-500.0,0.00015277,2]
[404182399,1769905832375,-500.0,0.00015277,2]
[404182400,1769905832385,-150.0,0.00015277,2]
[404182401,1769905832395,-240.44,0.00015305,2]
[404182402,1769905832405,-500.0,0.00015312,2]
[404182403,1769905832415,-500.0,0.00015312,2]
[404182404,1769905832425,-150.0,0.00015313,2]
[404182405,1769905832435,-151.0,0.00015319,2]
[404182406,1769905832446,-278.36328388,0.00015319,2]
[404182407,1769905832457,-1961.162,0.00015319,2]
[404182408,1769905832468,-187.335,0.00015319,2]
[404182409,1769905832478,-500.0,0.00015321,2]
[404182410,1769905832488,-269.04330534,0.00015321,2]
[404182411,1769905832498,-380.60372711,0.00015321,2]
[404182412,1769905832508,-369.15386447,0.00015321,2]
[404182413,1769905832519,-500.0,0.00015321,2]
[404182414,1769905832528,-500.0,0.00015321,2]
[404182415,1769905832538,-500.0,0.00015321,2]
[404182416,1769905832548,-500.0,0.00015321,2]
[404182417,1769905832561,-500.0,0.00015321,2]
[404182418,1769905832570,-500.0,0.00015321,2]
[404182419,1769905832580,-500.0,0.00015321,2]
[404182420,1769905832589,-500.0,0.00015321,2]
[404182421,1769905832599,-500.0,0.00015321,2]
[404182422,1769905832608,-500.0,0.00015321,2]
[404182423,1769905832617,-500.0,0.00015321,2]
[404182424,1769905832627,-500.0,0.00015321,2]
[404182425,1769905832636,-500.0,0.00015321,2]
[404182426,1769905832645,-500.0,0.00015321,2]
[404182427,1769905832654,-500.0,0.00015321,2]
[404182428,1769905832663,-500.0,0.00015321,2]
[404182429,1769905832672,-500.0,0.00015321,2]
[404182430,1769905832682,-500.0,0.00015321,2]
[404182431,1769905832692,-500.0,0.00015321,2]
[404182432,1769905832703,-500.0,0.00015321,2]
[404182433,1769905832713,-500.0,0.00015321,2]
[404182434,1769905832723,-500.0,0.00015321,2]
[404182435,1769905832733,-500.0,0.00015321,2]
[404182436,1769905832743,-500.0,0.00015321,2]
[404182437,1769905832754,-500.0,0.00015321,2]
[404182438,1769905832764,-500.0,0.00015321,2]
[404182439,1769905832773,-500.0,0.00015321,2]
[404182440,1769905832782,-500.0,0.00015321,2]
[404182441,1769905832791,-500.0,0.00015321,2]
[404182442,1769905832800,-500.0,0.00015321,2]
[404182443,1769905832810,-166.73497006,0.00015321,2]
[404182444,1769905832819,-500.0,0.00015332,2]
[404182445,1769905832837,-500.0,0.00015332,2]
[404182446,1769905832847,-460.33082853,0.00015332,2]
[404182447,1769905832857,-150.0,0.00015332,2]
[404182448,1769905832866,-150.0,0.00015332,2]
[404182449,1769905832876,-500.0,0.00015367,2]
[404182450,1769905832885,-500.0,0.00015367,2]
[404182451,1769905832895,-500.0,0.00015386,2]
[404182452,1769905832905,-150.0,0.00015386,2]
[404182453,1769905832915,-4364.61155833,0.00015396,2]
[404182454,1769905832927,-2723.127,0.00015397,2]
[404182455,1769905832940,-613.97,0.000154,2]
[404182456,1769905832951,-500.0,0.00015422,2]
[404182457,1769905832961,-500.0,0.00015422,2]
[404182458,1769905832970,-1004.65,0.00015422,2]
[404182459,1769905832980,-150.0,0.00015441,2]
[404182460,1769905832990,-500.0,0.00015477,2]
[404182461,1769905832999,-500.0,0.00015477,2]
[404182462,1769905833009,-161.36246175,0.00015496,2]
[404182463,1769905833021,-452.02134495,0.00015496,2]
[404182464,1769905833031,-500.0,0.00015496,2]
[404182465,1769905833040,-500.0,0.00015496,2]
[404182466,1769905833050,-500.0,0.00015496,2]
[404182467,1769905833060,-500.0,0.00015496,2]
[404182468,1769905833070,-500.0,0.00015496,2]
[404182469,1769905833080,-280.0,0.00015496,2]
[404182470,1769905833089,-500.0,0.00015496,2]
[404182471,1769905833099,-500.0,0.00015496,2]
[404182472,1769905833108,-500.0,0.00015496,2]
[404182473,1769905833118,-500.0,0.00015496,2]
[404182474,1769905833128,-151.0,0.00015513,2]
[404182475,1769905833137,-151.0,0.00015513,2]
[404182476,1769905833147,-151.0,0.00015526,2]
[404182477,1769905833156,-151.0,0.00015526,2]
[404182478,1769905833166,-366.76916305,0.00015528,2]
[404182479,1769905833176,-500.0,0.00015532,2]
[404182480,1769905833185,-572.0,0.00015532,2]
[404182481,1769905833195,-500.0,0.00015586,2]
[404182482,1769905833204,-392.63,0.000156,2]
[404182483,1769905833214,-188.14,0.0001561,2]
[404182484,1769905833227,-2268.9445447,0.00015632,2]
[404182485,1769905833236,-500.0,0.00015641,2]
[404182486,1769905833246,-500.0,0.00015696,2]
[404182487,1769905833255,-500.0,0.00015696,2]
[404182488,1769905833265,-500.0,0.00015696,2]
[404182489,1769905833274,-1004.65,0.00015696,2]
[404182490,1769905833283,-618.09920424,0.00015698,2]
[404182491,1769905833292,-500.0,0.00015751,2]
[404182492,1769905833303,-195.0,0.00015755,2]
[404182493,1769905833314,-6921.6596838,0.0001576,2]
[404182494,1769905833324,-1200.0,0.00015783,2]
[404182495,1769905833336,-420.0,0.00015784,2]
[404182496,1769905833347,-300.0,0.00015791,2]
[404182497,1769905833358,-250.0,0.00015791,2]
[404182498,1769905833368,-558.58231824,0.00015797,2]
[404182499,1769905833378,-360.56349982,0.00015797,2]
[404182500,1769905833387,-16703.7506339,0.00015798,2]
[404182501,1769905833398,-500.0,0.00015806,2]
[404182502,1769905833408,-150.65763047,0.00015822,2]
[404182503,1769905833422,-1457.41,0.00015824,2]
[404182504,1769905833434,-366.76916305,0.00015825,2]
[404182505,1769905833444,-500.0,0.00015836,2]
[404182506,1769905833454,-1680.0,0.00015854,2]
[404182507,1769905833463,-500.0,0.0001586,2]
[404182508,1769905833473,-299.62,0.0001587,2]
[404182509,1769905833483,-166.66,0.00015871,2]
[404182510,1769905833492,-500.0,0.00015915,2]
[404182511,1769905833502,-1000.0,0.00015918,2]
[404182512,1769905833511,-1000.0,0.00015942,2]
[404182513,1769905833521,-301.0,0.0001597,2]
[404182514,1769905833531,-1004.65,0.0001597,2]
[404182515,1769905833540,-6921.65968378,0.00015998,2]
[404182516,1769905833551,-366.76916305,0.00016121,2]
[404182517,1769905833560,-1028.58,0.0001613,2]
[404182518,1769905833569,-318.86,0.00016133,2]
[404182519,1769905833578,-318.86,0.00016185,2]
[404182520,1769905833588,-1841.29337994,0.000162,5]
[404182521,1769905833597,-510.0,0.00016225,2]
[404182522,1769905833607,-6921.65968378,0.00016236,2]
[404182523,1769905833620,-318.86,0.00016236,2]
[404182524,1769905833630,-1004.65,0.00016244,2]
[404182525,1769905833640,-318.86,0.00016288,2]
[404182526,1769905833649,-370.16734294,0.0001633,2]
[404182527,1769905833659,-318.86,0.00016339,2]
[404182528,1769905833668,-344.9,0.00016356,2]
[404182529,1769905833678,-217.113082,0.00016373,2]
[404182530,1769905833687,-500.0,0.00016373,2]
[404182531,1769905833697,-500.0,0.00016373,2]
[404182532,1769905833707,-500.0,0.00016373,2]
[404182533,1769905833717,-501.65706127,0.00016373,2]
[404182534,1769905833726,-502.09483667,0.00016373,2]
[404182535,1769905833749,-156.77997483,0.00016373,2]
[404182536,1769905833762,-500.0,0.00016373,2]
[404182537,1769905833774,-500.62954714,0.00016373,2]
[404182538,1769905833787,-614.51163375,0.00016373,2]
[404182539,1769905833799,-502.1700093,0.00016373,2]
[404182540,1769905833813,-500.0,0.00016373,2]
[404182541,1769905833825,-500.0,0.00016373,2]
[404182542,1769905833836,-500.0,0.00016373,2]
[404182543,1769905833847,-318.86,0.00016391,2]
[404182544,1769905833860,-838.0,0.000164,2]
[404182545,1769905833872,-366.76916305,0.00016418,2]
[404182546,1769905833882,-500.0,0.00016437,2]
[404182547,1769905833895,-563.08721289,0.00016438,2]
[404182548,1769905833908,-563.08721289,0.00016438,2]
[404182549,1769905833919,-563.08721289,0.00016438,2]
[404182550,1769905833932,-563.08721289,0.00016438,2]
[404182551,1769905833945,-563.08721289,0.00016438,2]
[404182552,1769905833956,-563.08721289,0.00016438,2]
[404182553,1769905833968,-563.08721289,0.00016438,2]
[404182554,1769905833979,-563.08721289,0.00016438,2]
[404182555,1769905833992,-563.08721289,0.00016438,2]
[404182556,1769905834006,-563.08721289,0.00016438,2]
[404182557,1769905834019,-563.08721289,0.00016438,2]
[404182558,1769905834029,-563.08721289,0.00016438,2]
[404182559,1769905834040,-563.08721289,0.00016438,2]
[404182560,1769905834051,-563.08721289,0.00016438,2]
[404182561,1769905834062,-560.12359598,0.00016438,2]
[404182562,1769905834072,-560.12359598,0.00016438,2]
[404182563,1769905834083,-560.12359598,0.00016438,2]
[404182564,1769905834095,-560.12359598,0.00016438,2]
[404182565,1769905834106,-563.23539374,0.00016438,2]
[404182566,1769905834118,-563.23539374,0.00016438,2]
[404182567,1769905834129,-563.23539374,0.00016438,2]
[404182568,1769905834139,-558.33769466,0.00016438,2]
[404182569,1769905834149,-558.33769466,0.00016438,2]
[404182570,1769905834159,-558.33769466,0.00016438,2]
[404182571,1769905834170,-558.33769466,0.00016438,2]
[404182572,1769905834180,-561.77361894,0.00016438,2]
[404182573,1769905834192,-561.77361894,0.00016438,2]
[404182574,1769905834201,-561.77361894,0.00016438,2]
[404182575,1769905834211,-561.77361894,0.00016438,2]
[404182576,1769905834220,-561.77361894,0.00016438,2]
[404182577,1769905834231,-557.16891714,0.00016438,2]
[404182578,1769905834242,-557.16891714,0.00016438,2]
[404182579,1769905834252,-557.16891714,0.00016438,2]
[404182580,1769905834263,-560.05082533,0.00016438,2]
[404182581,1769905834273,-560.05082533,0.00016438,2]
[404182582,1769905834283,-560.05082533,0.00016438,2]
[404182583,1769905834294,-560.05082533,0.00016438,2]
[404182584,1769905834304,-560.05082533,0.00016438,2]
[404182585,1769905834314,-560.05082533,0.00016438,2]
[404182586,1769905834324,-560.05082533,0.00016438,2]
[404182587,1769905834335,-560.05082533,0.00016438,2]
[404182588,1769905834346,-560.05082533,0.00016438,2]
[404182589,1769905834356,-560.05082533,0.00016438,2]
[404182590,1769905834366,-560.05082533,0.00016438,2]
[404182591,1769905834377,-560.05082533,0.00016438,2]
[404182592,1769905834387,-560.05082533,0.00016438,2]
[404182593,1769905834398,-560.05082533,0.00016438,2]
[404182594,1769905834408,-560.05082533,0.00016438,2]
[404182595,1769905834418,-560.05082533,0.00016438,2]
[404182596,1769905834428,-560.05082533,0.00016438,2]
[404182597,1769905834439,-560.05082533,0.00016438,2]
[404182598,1769905834450,-560.05082533,0.00016438,2]
[404182599,1769905834460,-560.05082533,0.00016438,2]
[404182600,1769905834470,-560.05082533,0.00016438,2]
[404182601,1769905834480,-560.05082533,0.00016438,2]
[404182602,1769905834490,-560.05082533,0.00016438,2]
[404182603,1769905834501,-560.05082533,0.00016438,2]
[404182604,1769905834511,-560.05082533,0.00016438,2]
[404182605,1769905834522,-560.05082533,0.00016438,2]
[404182606,1769905834532,-560.05082533,0.00016438,2]
[404182607,1769905834543,-560.05082533,0.00016438,2]
[404182608,1769905834555,-560.05082533,0.00016438,2]
[404182609,1769905834575,-560.05082533,0.00016438,2]
[404182610,1769905834588,-560.05082533,0.00016438,2]
[404182611,1769905834600,-560.05082533,0.00016438,2]
[404182612,1769905834611,-560.05082533,0.00016438,2]
[404182613,1769905834624,-560.05082533,0.00016438,2]
[404182614,1769905834637,-560.05082533,0.00016438,2]
[404182615,1769905834649,-560.05082533,0.00016438,2]
[404182616,1769905834660,-560.05082533,0.00016438,2]
[404182617,1769905834671,-560.05082533,0.00016438,2]
[404182618,1769905834684,-560.05082533,0.00016438,2]
[404182619,1769905834695,-561.03337065,0.00016438,2]
[404182620,1769905834706,-561.03337065,0.00016438,2]
[404182621,1769905834716,-561.03337065,0.00016438,2]
[404182622,1769905834727,-561.03337065,0.00016438,2]
[404182623,1769905834738,-561.03337065,0.00016438,2]
[404182624,1769905834749,-561.03337065,0.00016438,2]
[404182625,1769905834760,-561.03337065,0.00016438,2]
[404182626,1769905834771,-561.03337065,0.00016438,2]
[404182627,1769905834781,-561.03337065,0.00016438,2]
[404182628,1769905834793,-561.03337065,0.00016438,2]
[404182629,1769905834808,-561.03337065,0.00016438,2]
[404182630,1769905834821,-561.03337065,0.00016438,2]
[404182631,1769905834833,-561.03337065,0.00016438,2]
[404182632,1769905834844,-561.03337065,0.00016438,2]
[404182633,1769905834856,-561.03337065,0.00016438,2]
[404182634,1769905834867,-561.03337065,0.00016438,2]
[404182635,1769905834881,-561.03337065,0.00016438,2]
[404182636,1769905834893,-561.03337065,0.00016438,2]
[404182637,1769905834905,-561.03337063,0.00016438,2]